Cogmind - Beta 15 @@@ ROGUE MODE // 2025.10.11 @ 22:12:48 Player: microsand Result: Destroyed by G-34 Mercenary with Small Laser Performance ------------- Evolutions (0) 0 Regions Visited (1) 200 Robots Destroyed (16) 80 Value Destroyed (254) 254 Prototype IDs (0) 0 Alien Tech Used (0) 0 Bonus (0) 0 TOTAL SCORE: 534 Bonus ------- None Cogmind --------- Core Integrity 0/250 Matter 265/300 Energy 97/125 System Corruption 1% Temperature Cool (6) Movement Walking (120) Location -10/Materials Parts ------- > --- POWER (1) -------- Light Ion Engine > --- PROPULSION (2) --- Aluminum Leg > --- UTILITY (2) ------ Small Storage Unit Signal Interpreter > --- WEAPON (2) ------- Small Laser Datajack > --- INVENTORY (8) ---- Seismic Detector Small Laser Peak State ------------ > --- POWER ------------ Light Ion Engine > --- PROPULSION ------- Aluminum Leg Aluminum Leg > --- UTILITY ---------- Small Storage Unit Seismic Detector > --- WEAPON ----------- Small Laser Small Laser > --- INVENTORY -------- (None) [Rating: 7] Favorites ----------- Power Light Ion Engine Engine Light Ion Engine Propulsion Aluminum Leg Leg Aluminum Leg Utility Signal Interpreter Device Sensor Array Storage Small Storage Unit Processor Signal Interpreter Weapon Small Laser Energy Gun Small Laser Special Weapon Mining Laser Special Melee Weapon Datajack Build | -11 -10 ------- Run | Yrd Mat Slots Evolved . | . . Power . | . . Propulsion . | . . Utility . | . . Weapon . | . . Parts Attached 14 | 7 7 Power 3 | 1 2 Engine 3 | 1 2 Core . | . . Reactor . | . . Propulsion 2 | 2 . Treads . | . . Leg 2 | 2 . Wheel . | . . Hover . | . . Flight . | . . Utility 4 | 2 2 Device 2 | 1 1 Storage 1 | 1 . Processor 1 | . 1 Hackware . | . . Protection . | . . Artifact . | . . Weapon 5 | 2 3 Energy Gun 3 | 2 1 Energy Cannon . | . . Ballistic Gun . | . . Ballistic Cannon . | . . Launcher . | . . Special Weapon 1 | . 1 Impact Weapon . | . . Slashing Weapon . | . . Piercing Weapon . | . . Special Melee Weapon 1 | . 1 Unidentified Prototypes . | . . Parts Lost 6 | . 6 Power 2 | . 2 Propulsion 1 | . 1 Utility 1 | . 1 Weapon 2 | . 2 Highest Loss Streak 3 | . 3 To Critical Strikes . | . . Average Backups 2 | . 2 Power . | . . Propulsion . | . . Utility 1 | . 1 Weapon . | . . Tool/Special . | . . Unused Backups . | . . Power . | . . Propulsion . | . . Utility . | . . Weapon . | . . Tool/Special . | . . Average Slot Usage (%) 94 | . 94 Engine 10 | . 10 Leg 27 | . 27 Device 12 | . 12 Storage 3 | . 3 Processor 10 | . 10 Energy Gun 19 | . 19 Special Weapon 6 | . 6 Peak Build Rating 7 | 7 7 Average Rating 6 | 5 6 On Entrance 3 | . 7 Naked Turns . | . . Heaviest Build 11 | 11 11 Greatest Support 20 | 20 20 Greatest Overweight (x) . | . . Average Overweight (x) . | . . Largest Inventory Capacity 8 | 8 8 Average Capacity 6 | 7 5 Most Carried 4 | 4 4 Average Carried 2 | . 2 Final Capacity 8 | 8 8 Final Carried 2 | . 2 Class Distribution -------------------- 100% | Mutant Dominant Class ---------------- Mutant | -10/Materials Resources | -11 -10 ----------- Run | Yrd Mat Matter Collected 310 | 182 128 Remotely . | . . Salvage Created 375 | 108 267 Parts 32 | 10 22 Haulers Intercepted . | . . Recyclers Shooed . | . . Parts Field Recycled . | . . Retrieved Matter . | . . Parts Self-Destructed . | . . Prevented . | . . Kills | -11 -10 ------- Run | Yrd Mat Combat Hostiles Destroyed 9 | . 9 Guns 9 | . 9 Classes Destroyed 4 | 1 3 Tunneler 6 | 5 1 Operator 1 | . 1 Swarmer 5 | . 5 Grunt 4 | . 4 Best Kill Streak 3 | 2 3 Combat Bots Only 3 | . 3 Max Kills in Single Turn 2 | 1 2 Gunslinging 1 | . 1 Exploded . | . . Melee . | . . Uniques/NPCs Destroyed . | . . Combat | -11 -10 -------- Run | Yrd Mat Hostile Shots Fired 95 | . 95 Missed 29 | . 29 Hits 66 | . 66 Projectile 66 | . 66 AOE 1 | . 1 Damage Taken 708 | . 708 Core 253 | . 253 Absorbed by Shields . | . . Core Remaining (%) 100 | 100 . Volleys Fired 78 | 20 58 Largest 2 | 2 2 Hottest 140 | 80 140 Shots Fired 132 | 40 92 Gun 124 | 40 84 Cannon . | . . Launcher . | . . Special 8 | . 8 Kinetic . | . . Thermal 132 | 40 92 Explosive . | . . Electromagnetic . | . . Robot Hit Streak 12 | 12 6 Robot Miss Streak 4 | 2 4 Penetration Max . | . . Secondary Targets 1 | . 1 Max Gunslinging Chain 1 | . 1 Shots Hit Robots 75 | 26 49 Core Hits 20 | 5 15 Critical Kills . | . . Critical Parts Destroyed . | . . Critical Strikes . | . . Melee Attacks . | . . Impact . | . . Slashing . | . . Piercing . | . . Sneak Attacks . | . . Combat Hostiles . | . . Follow-up Attacks . | . . Damage Inflicted 898 | 251 647 Guns 798 | 251 547 Cannons . | . . Explosions . | . . Melee . | . . Ramming 4 | . 4 Kinetic . | . . Thermal 894 | 251 643 Explosive . | . . Electromagnetic . | . . Impact . | . . Slashing . | . . Piercing . | . . Highest Corruption 1 | . 1 Average Corruption 1 | . 1 Corruption Purged . | . . Corruption Blocked . | . . Effects 2 | . 2 Message Errors 1 | . 1 Alerts 1 | . 1 Overload Shots . | . . Overflow Damage 7 | . 7 Projectiles 7 | . 7 Explosions . | . . Melee . | . . Knockbacks . | . . Impact . | . . Kinetic . | . . Secondary . | . . Self-Inflicted Damage . | . . Shots . | . . Rammed . | . . Targets Rammed 2 | . 2 Kicked 2 | . 2 Crushed . | . . Highest Temperature 144 | 144 88 Average Temperature 37 | 52 30 Received Heat Transfer 174 | . 174 Siege Activations . | . . Martial Activations . | . . Shielding Activations . | . . Robots Disrupted . | . . Combat Hostiles . | . . Robots Corrupted . | . . Combat Hostiles . | . . Parts Fried . | . . Impact Corruptions . | . . Robots Melted . | . . Combat Hostiles . | . . Parts Melted 3 | . 3 Heat Transferred 2000 | 575 1425 Parts Sabotaged . | . . Parts Stolen . | . . Parts Stripped . | . . Power Chain Reactions . | . . Alert | -11 -10 ------- Run | Yrd Mat Maximum Alert Level . | . . Low Security (%) 100 | 100 100 Level 1 . | . . Level 2 . | . . Level 3 . | . . Level 4 . | . . Level 5 . | . . High Security . | . . Max Security . | . . Peak Influence 85 | 10 85 Initial . | . . Average 25 | 1 32 Influence Increases 309 | 25 284 Destroy 0b10 Robot/C 180 | . 180 Destroy 0b10 Robot/NC 35 | 25 10 Destroy Leader 30 | . 30 Successful Hack 4 | . 4 Disable Machine 15 | . 15 Lose Combat Pursuer 45 | . 45 Influence Decreases 271 | 25 246 Time Decay 241 | 25 216 Lost Part 30 | . 30 Squads Dispatched 4 | . 4 Investigation 2 | . 2 Extermination . | . . Reinforcement 2 | . 2 Assault . | . . Garrison . | . . Intercept . | . . Searches Triggered . | . . Construction Impeded . | . . Haulers Reinforced . | . . Active Scanning Responses . | . . Cargo Convoy Interrupts . | . . Stealth | -11 -10 --------- Run | Yrd Mat Distress Signals . | . . Communications Jammed . | . . Distress Signals . | . . Times Spotted 17 | . 17 Peak Tracking Total 3 | . 3 Tactical Retreats 2 | . 2 Traps | -11 -10 ------- Run | Yrd Mat Traps Triggered 2 | . 2 Indirectly . | . . Trap Hack Attempts . | . . Triggered . | . . Disarmed . | . . Reprogrammed . | . . Reused . | . . Traps Extracted . | . . Installed . | . . Triggered . | . . Machines | -11 -10 ---------- Run | Yrd Mat Machines Disabled 1 | . 1 Max in Single Turn 1 | . 1 Machines Repaired . | . . Machines Dismantled . | . . Machines Sabotaged . | . . Overloaded Fab Kills . | . . Hacking | -11 -10 --------- Run | Yrd Mat Machines Accessed 2 | . 2 Terminals 2 | . 2 Fabricators . | . . Repair Stations . | . . Recycling Units . | . . Scanalyzers . | . . Garrison Access . | . . Total Hacks 4 | . 4 Successful 3 | . 3 Failed 1 | . 1 Catastrophic . | . . Database Lockouts . | . . Manual 4 | . 4 Terminals 4 | . 4 Fabricators . | . . Repair Stations . | . . Recycling Units . | . . Scanalyzers . | . . Garrison Access . | . . Terminal Hacks . | . . Fabricator Hacks . | . . Repair Station Hacks . | . . Recycling Unit Hacks . | . . Scanalyzer . | . . Garrison Access Hacks . | . . Unauthorized Hacks 3 | . 3 Terminals 3 | . 3 Botnet 2 | . 2 Operators 1 | . 1 Fabricators . | . . Repair Stations . | . . Recycling Units . | . . Scanalyzers . | . . Garrison Access . | . . Data Cores Recovered . | . . Used . | . . Hacking Detections 1 | . 1 Full Trace Events . | . . Feedback Events . | . . Feedback Blocked . | . . Robot Schematics Acquired . | . . Robots Built . | . . Authchips . | . . Time . | . . Total Robot Build Rating . | . . Part Schematics Acquired . | . . Parts Built . | . . Authchips . | . . Time . | . . Total Part Build Rating . | . . Parts Repaired . | . . Time . | . . Parts Recycled . | . . Recycled Matter . | . . Retrieved Matter . | . . Retrieved Components . | . . Parts Scanalyzed . | . . Part Schematics Acquired . | . . Parts Damaged . | . . Bothacking | -11 -10 ------------ Run | Yrd Mat Used RIF Installer . | . . Robots Hacked . | . . Non-combat . | . . Combat . | . . Robot Hacks Applied . | . . Relay Couplers Released . | . . Fabnet Peak Effective % . | . . Robots Rewired . | . . Allies Hacked . | . . Hacks Repelled . | . . Allies | -11 -10 -------- Run | Yrd Mat Total Allies . | . . Largest Group . | . . Highest-Rated Group . | . . Highest-Rated Ally . | . . Total Orders . | . . Ally Attacks . | . . Total Damage . | . . Kills . | . . Allies Corrupted . | . . Allies Melted . | . . Intel | -11 -10 ------- Run | Yrd Mat Active Infowar (turns) 662 | 42 620 Sensors 470 | . 470 Seismic 192 | 42 150 Robot Analysis Total . | . . Derelict Logs Recovered . | . . Drone Launches . | . . Drone Recoveries . | . . Exploration | -11 -10 ------------- Run | Yrd Mat Turns Passed 890 | 195 695 Spaces Moved 512 | 111 401 Core 19 | 19 . Treads . | . . Legs 493 | 92 401 Wheels . | . . Hover . | . . Flight . | . . Fastest Speed 50 | 50 120 Average Speed 117 | 108 120 Slowest Speed 120 | 120 120 Overloaded Moves . | . . Propulsion Burnouts . | . . Robots Hopped . | . . Potential Cave-ins . | . . Cave-ins Triggered . | . . Exploration Rate (%) 25 | 8 43 Regions Visited 1 Branch Regions . Pre-discovered Areas . | . . Known Exits Taken . | . . Unknown Exits Taken 1 | 1 . Scrap Searched . | . . Spaces Dug . | . . Terrain Destroyed . | . . Melee . | . . Projectile . | . . AOE . | . . Terrain Rammed . | . . Walls Destroyed . | . . Machines Disabled . | . . Actions | -11 -10 --------- Run | Yrd Mat Total 651 | 146 505 Wait 30 | 2 28 Move 511 | 110 401 Hop . | . . Pick Up 14 | 7 7 Fast Attach . | . . Attach 12 | 7 5 Detach . | . . Swap 4 | . 4 Drop . | . . Fire 78 | 20 58 Melee . | . . Ram . | . . Kick 2 | . 2 Crush . | . . Escape Stasis . | . . Rewire . | . . Trap . | . . Miscellaneous . | . . Route ------- -11/Scrapyard -10/Materials (discovered 1 exit: *Mat) History --------- Turn | Location | Event 3 | -11/Scrapyard | Discovered new exit (range 15) 196 | -11/Scrapyard | Entered Materials 197 | -10/Materials | Met a group of wandering Federalists 311 | -10/Materials | Build established: Mutant 371 | -10/Materials | Core integrity fell below 50% 672 | -10/Materials | Discovered new exit (range 5) 681 | -10/Materials | Identified exit to Materials 727 | -10/Materials | Lost 3 parts (2p1w) 829 | -10/Materials | Core integrity fell below 20% 891 | -10/Materials | Destroyed by G-34 Mercenary with Small Laser Last Messages --------------- 00720_ U-05 Engineer lays Concrete. 00721_ T-07 Excavator is excavating. 00734_ K-01 Serf collects debris. 00750_ | H%MS4/ RSJ>= AJ60Z5> JCD|LZI1N GFN 00767_ Acquired Datajack. 00780_ Triggered Alarm Trap. 00780_ An alarm sounds. 00780_ ALERT: Alarm triggered, dispatching investigation squad. 00805_ G-34 Mercenary destroyed. 00816_ Sensor Array destroyed. 00832_ G-34 Mercenary overheating. 00836_ Sml. Laser destroyed. 00836_ Aluminum Leg melted. 00836_ G-34 Mercenary destroyed. 00875_ Aluminum Leg destroyed. 00876_ Heat Sink melted. 00876_ Aluminum Leg melted. 00876_ G-34 Mercenary destroyed. 00885_ Acquired Sml. Laser. Map ----- +----------------------------------------------------+ | ?????????????????????????????????????????????? | | ?????????????????????????????????????????????? | | ???????? ??????????????????????????????????? | | ???????# #?????????????????????????????????? | | ???????# #?????????????????????????????????? | | ???????# #?????????????????????????????????? | | ???????# #?????????????????????????????????? | | ???????# #?????????????????????????????????? | | ???????# ############/#####????????????????? | | ???????# ?????????????????? | | ???????# ?????????????????? | | ???????# ??????????????????? | | ???????+ #??????????????????? | | ???????# #??????????????????? | | ######## " """"" #??????????????????? | | """"""""" #??????????????????? | | """ """ #??????????????????? | | % %=% #??????????????????? | | ######## [ = #??????????????????? | | # [%##### t#??????????????????? | | ?# # =#???# m#??????????????????? | | ?# # < #???# #??????????????????? | | ?#####?# #???# #??????????????????? | | ???????#####???# #??????????????????? | | ???????????????# !########???????????? | | ???????????????# @g% [#???????????? | | ???????????????# %#[ #???????????? | | ???????????????######## # #???????????? | | ??????????????????????# # #???????????? | | ??????????????????????# # #???????????? | | ?????????############## # #???????????? | | ?????????# # ####+###???????????? | | ?????????# !/ + #???????????? | | ?????????# !/ # #???????????? | | ?????????# !/ [ ############???????????? | | ?????????# #??????????????????????? | | ?????????##############??????????????????????? | | ?????????????????????????????????????????????? | | | | | | | | | | | | | | | | | | | | | | | | | +----------------------------------------------------+ Best States ------------- Heat Dissipation 25 Energy Generation 10 Energy Capacity 125 Matter Stores 300 Matter Capacity 300 Sight Range 16 Robot Scan Range 14 Terrain Scan Density 10 Evasion (%) 55 Item Schematics ----------------- None Robot Schematics ------------------ None Fabricated ------------ Nothing Repaired ---------- Nothing Alien Tech Used ----------------- None Achievements -------------- None Challenges ------------ None Game ------ Seed LegControlArticulator Manual? 0 Play Time 00:07:26 Cumulative 18.3 hours Start 2025.10.11 @ 22:08:37 End 2025.10.11 @ 22:12:48 Sessions 1 Manual Loads 0 Difficulty Rogue Special Mode None Game No. 53 Rogue 53 Adventurer 0 Explorer 0 Win Type - Total 0 Types 0/0/0/0/0/0/0/0/0/0 Lore% 31 Gallery% 26 Achievement% 28 Wizard Run 0 Options --------- Layout 1 ASCII 0 Keyboard 0 Movement Numpad Keybinds 0 Fullscreen 1 Font 24/Smallcaps Map View 50x35 Zoom Use 0% Tactical HUD 1 Map Filters NONE Filters NONE Steam 1 RUN: 74e8a18a-29fb-4c1f-9f46-c93fb3ac3782